[Event "Titled Tuesday Blitz May 17 Early 2022"]
[White "Vokhidov, Shamsiddin"]
[Black "Ronka, Erik"]
[WhiteFideId "14204223"]
[BlackFideId "505080"]
[WhiteElo "2611"]
[BlackElo "2264"]
[Result "1-0"]
[Round "01"]
[TimeControl "180+1"]
[Date "2022.05.17"]
[WhiteClock "0:01:47"]
[BlackClock "0:00:08"]

1. e4 {[%clk 0:03:00]}  c5 {[%clk 0:02:58]} 2. Nf3 {[%clk 0:03:00]}  e6 {[%clk 0:02:59]} 3. c3 {[%clk 0:03:00]}  Nf6 {[%clk 0:02:58]} 4. e5 {[%clk 0:03:00]}  Nd5 {[%clk 0:02:59]} 5. d4 {[%clk 0:03:00]}  cxd4 {[%clk 0:02:59]} 6. cxd4 {[%clk 0:03:00]}  d6 {[%clk 0:03:00]} 7. Bc4 {[%clk 0:03:01]}  Nc6 {[%clk 0:03:00]} 8. O-O {[%clk 0:03:01]}  Be7 {[%clk 0:03:00]} 9. Qe2 {[%clk 0:03:01]}  O-O {[%clk 0:02:59]} 10. Bd2 {[%clk 0:03:01]}  b6 {[%clk 0:02:49]} 11. Nc3 {[%clk 0:02:57]}  Nxc3 {[%clk 0:02:48]} 12. Bxc3 {[%clk 0:02:58]}  dxe5 {[%clk 0:02:42]} 13. dxe5 {[%clk 0:02:57]}  Bb7 {[%clk 0:02:41]} 14. Bd3 {[%clk 0:02:49]}  Nb4 {[%clk 0:02:25]} 15. Bxb4 {[%clk 0:02:43]}  Bxb4 {[%clk 0:02:26]} 16. Rfd1 {[%clk 0:02:43]}  Qe8 {[%clk 0:01:34]} 17. Ng5 {[%clk 0:02:20]}  g6 {[%clk 0:01:21]} 18. Be4 {[%clk 0:02:12]}  Qe7 {[%clk 0:00:54]} 19. Bxb7 {[%clk 0:02:04]}  Qxb7 {[%clk 0:00:55]} 20. Ne4 {[%clk 0:02:01]}  Rfd8 {[%clk 0:00:46]} 21. Qf3 {[%clk 0:01:59]}  Qe7 {[%clk 0:00:33]} 22. a3 {[%clk 0:01:56]}  Bc5 {[%clk 0:00:32]} 23. b4 {[%clk 0:01:56]}  Bxb4 {[%clk 0:00:16]} 24. axb4 {[%clk 0:01:55]}  Qxb4 {[%clk 0:00:17]} 25. g3 {[%clk 0:01:52]}  Rac8 {[%clk 0:00:14]} 26. Rxd8+ {[%clk 0:01:50]}  Rxd8 {[%clk 0:00:14]} 27. Rxa7 {[%clk 0:01:49]}  Rf8 {[%clk 0:00:11]} 28. Nd6 {[%clk 0:01:48]}  Qb1+ {[%clk 0:00:10]} 29. Kg2 {[%clk 0:01:48]}  Qb2 {[%clk 0:00:08]} 30. Rxf7 {[%clk 0:01:47]} 1-0


[Site "https://www.chess.com"]

[Event "Titled Tuesday Blitz May 17 Early 2022"]
[White "Yilmaz, Mustafa"]
[Black "Lehtosaari, Mauri"]
[WhiteFideId "6302718"]
[BlackFideId "501999"]
[WhiteElo "2568"]
[BlackElo "2511"]
[Result "1-0"]
[Round "01"]
[TimeControl "180+1"]
[Date "2022.05.17"]
[WhiteClock "0:00:52"]
[BlackClock "0:00:20"]

1. c4 {[%clk 0:03:00]}  c6 {[%clk 0:02:58]} 2. d4 {[%clk 0:02:57]}  d5 {[%clk 0:02:56]} 3. cxd5 {[%clk 0:02:58]}  cxd5 {[%clk 0:02:56]} 4. Bf4 {[%clk 0:02:55]}  Nf6 {[%clk 0:02:52]} 5. e3 {[%clk 0:02:53]}  Nc6 {[%clk 0:02:52]} 6. Nc3 {[%clk 0:02:53]}  a6 {[%clk 0:02:53]} 7. Be2 {[%clk 0:02:49]}  Bf5 {[%clk 0:02:46]} 8. Nf3 {[%clk 0:02:48]}  e6 {[%clk 0:02:38]} 9. Qb3 {[%clk 0:02:47]}  Ra7 {[%clk 0:02:15]} 10. Ne5 {[%clk 0:02:28]}  Nxe5 {[%clk 0:02:10]} 11. Bxe5 {[%clk 0:02:28]}  Bd6 {[%clk 0:01:48]} 12. Qa4+ {[%clk 0:02:19]}  Ke7 {[%clk 0:01:47]} 13. Nb5 {[%clk 0:02:06]}  axb5 {[%clk 0:01:29]} 14. Qxa7 {[%clk 0:02:06]}  Bb4+ {[%clk 0:01:19]} 15. Kf1 {[%clk 0:02:05]}  Qc8 {[%clk 0:00:52]} 16. f3 {[%clk 0:01:28]}  Rd8 {[%clk 0:00:38]} 17. Kf2 {[%clk 0:01:21]}  Qc2 {[%clk 0:00:31]} 18. Rac1 {[%clk 0:01:19]}  Qxb2 {[%clk 0:00:29]} 19. Qxb7+ {[%clk 0:00:53]}  Rd7 {[%clk 0:00:25]} 20. Qxb5 {[%clk 0:00:52]}  Bd3 {[%clk 0:00:20]} 21. Qxd3 {[%clk 0:00:52]} 1-0


[Site "https://www.chess.com"]

[Event "Titled Tuesday Blitz May 17 Early 2022"]
[White "Artemenko, Oleg"]
[Black "Lazavik, Denis"]
[WhiteFideId "14201798"]
[BlackFideId "13515110"]
[WhiteElo "2287"]
[BlackElo "2437"]
[Result "0-1"]
[Round "02"]
[TimeControl "180+1"]
[Date "2022.05.17"]
[WhiteClock "0:00:01"]
[BlackClock "0:00:09"]

1. d4 {[%clk 0:03:00]}  f5 {[%clk 0:02:58]} 2. Nc3 {[%clk 0:03:01]}  Nf6 {[%clk 0:02:58]} 3. Bg5 {[%clk 0:03:00]}  d5 {[%clk 0:02:58]} 4. Bxf6 {[%clk 0:02:58]}  exf6 {[%clk 0:02:58]} 5. e3 {[%clk 0:02:58]}  Be6 {[%clk 0:02:58]} 6. Qf3 {[%clk 0:02:58]}  Qd7 {[%clk 0:02:52]} 7. Bd3 {[%clk 0:02:58]}  Nc6 {[%clk 0:02:50]} 8. Nge2 {[%clk 0:02:54]}  O-O-O {[%clk 0:02:43]} 9. Nf4 {[%clk 0:02:53]}  Bf7 {[%clk 0:02:43]} 10. Nfxd5 {[%clk 0:02:28]}  Bxd5 {[%clk 0:02:36]} 11. Bxf5 {[%clk 0:02:20]}  Bxf3 {[%clk 0:02:27]} 12. Bxd7+ {[%clk 0:02:17]}  Rxd7 {[%clk 0:02:28]} 13. gxf3 {[%clk 0:02:18]}  Bb4 {[%clk 0:02:27]} 14. Ke2 {[%clk 0:02:14]}  Re8 {[%clk 0:02:24]} 15. Kf1 {[%clk 0:01:57]}  Bxc3 {[%clk 0:02:16]} 16. bxc3 {[%clk 0:01:58]}  Na5 {[%clk 0:02:16]} 17. Ke2 {[%clk 0:01:57]}  c5 {[%clk 0:02:14]} 18. Rab1 {[%clk 0:01:54]}  a6 {[%clk 0:02:08]} 19. Kd3 {[%clk 0:01:51]}  Red8 {[%clk 0:02:07]} 20. Rhg1 {[%clk 0:01:45]}  Rc7 {[%clk 0:02:04]} 21. e4 {[%clk 0:01:36]}  cxd4 {[%clk 0:01:38]} 22. cxd4 {[%clk 0:01:36]}  Nc6 {[%clk 0:01:38]} 23. c3 {[%clk 0:01:32]}  Ne5+ {[%clk 0:01:35]} 24. Ke2 {[%clk 0:01:32]}  Ng6 {[%clk 0:01:32]} 25. Rb3 {[%clk 0:01:32]}  Nf4+ {[%clk 0:01:27]} 26. Ke3 {[%clk 0:01:32]}  g5 {[%clk 0:01:28]} 27. h4 {[%clk 0:01:30]}  h6 {[%clk 0:01:25]} 28. hxg5 {[%clk 0:01:30]}  hxg5 {[%clk 0:01:26]} 29. Rh1 {[%clk 0:01:30]}  f5 {[%clk 0:00:42]} 30. Rg1 {[%clk 0:01:24]}  Nh3 {[%clk 0:00:37]} 31. Rh1 {[%clk 0:01:17]}  Nf4 {[%clk 0:00:37]} 32. Rg1 {[%clk 0:01:17]}  Nh3 {[%clk 0:00:30]} 33. Rh1 {[%clk 0:01:17]}  g4 {[%clk 0:00:31]} 34. fxg4 {[%clk 0:01:03]}  fxg4 {[%clk 0:00:31]} 35. f4 {[%clk 0:00:54]}  Rg8 {[%clk 0:00:25]} 36. Rh2 {[%clk 0:00:41]}  g3 {[%clk 0:00:13]} 37. Rg2 {[%clk 0:00:41]}  Rg4 {[%clk 0:00:14]} 38. f5 {[%clk 0:00:34]}  Nf4 {[%clk 0:00:14]} 39. Kf3 {[%clk 0:00:33]}  Nxg2 {[%clk 0:00:11]} 40. Kxg4 {[%clk 0:00:33]}  Rg7+ {[%clk 0:00:11]} 41. Kh5 {[%clk 0:00:28]}  Nf4+ {[%clk 0:00:11]} 42. Kh6 {[%clk 0:00:28]}  g2 {[%clk 0:00:11]} 43. Kxg7 {[%clk 0:00:28]}  g1=Q+ {[%clk 0:00:12]} 44. Kf6 {[%clk 0:00:29]}  Qg8 {[%clk 0:00:10]} 45. Ke5 {[%clk 0:00:27]}  Nd3+ {[%clk 0:00:10]} 46. Kf6 {[%clk 0:00:25]}  Qf8+ {[%clk 0:00:10]} 47. Kg5 {[%clk 0:00:25]}  Qe7+ {[%clk 0:00:10]} 48. f6 {[%clk 0:00:25]}  Qxe4 {[%clk 0:00:11]} 49. f7 {[%clk 0:00:26]}  Qf3 {[%clk 0:00:10]} 50. Kg6 {[%clk 0:00:20]}  Nf4+ {[%clk 0:00:11]} 51. Kf6 {[%clk 0:00:20]}  Nd5+ {[%clk 0:00:10]} 52. Kg7 {[%clk 0:00:20]}  Qg4+ {[%clk 0:00:10]} 53. Kh8 {[%clk 0:00:19]}  Qh5+ {[%clk 0:00:09]} 54. Kg7 {[%clk 0:00:20]}  Qg5+ {[%clk 0:00:09]} 55. Kh8 {[%clk 0:00:17]}  Qh6+ {[%clk 0:00:09]} 56. Kg8 {[%clk 0:00:01]}  Nf6# {[%clk 0:00:09]} 0-1


[Site "https://www.chess.com"]

[Event "Titled Tuesday Blitz May 17 Early 2022"]
[White "Blomqvist, Erik"]
[Black "Vasquez Schroeder, Rodrigo"]
[WhiteFideId "1709437"]
[BlackFideId "3400042"]
[WhiteElo "2423"]
[BlackElo "2567"]
[Result "0-1"]
[Round "02"]
[TimeControl "180+1"]
[Date "2022.05.17"]
[WhiteClock "0:00:02"]
[BlackClock "0:00:15"]

1. e4 {[%clk 0:03:00]}  c5 {[%clk 0:02:58]} 2. Nf3 {[%clk 0:03:00]}  d6 {[%clk 0:02:58]} 3. d4 {[%clk 0:02:55]}  cxd4 {[%clk 0:02:58]} 4. Nxd4 {[%clk 0:02:56]}  Nf6 {[%clk 0:02:59]} 5. Nc3 {[%clk 0:02:57]}  a6 {[%clk 0:02:56]} 6. Be2 {[%clk 0:02:56]}  e6 {[%clk 0:02:51]} 7. f4 {[%clk 0:02:53]}  Qc7 {[%clk 0:02:49]} 8. Be3 {[%clk 0:02:48]}  b5 {[%clk 0:02:48]} 9. a3 {[%clk 0:02:44]}  Bb7 {[%clk 0:02:47]} 10. Bf3 {[%clk 0:02:44]}  Nbd7 {[%clk 0:02:48]} 11. Qe2 {[%clk 0:02:43]}  Nc5 {[%clk 0:02:28]} 12. Bf2 {[%clk 0:02:38]}  Be7 {[%clk 0:02:27]} 13. O-O-O {[%clk 0:02:24]}  Rb8 {[%clk 0:02:10]} 14. g4 {[%clk 0:02:23]}  Na4 {[%clk 0:02:04]} 15. Nxa4 {[%clk 0:01:59]}  bxa4 {[%clk 0:02:03]} 16. g5 {[%clk 0:01:48]}  Nd7 {[%clk 0:02:01]} 17. h4 {[%clk 0:01:46]}  Nc5 {[%clk 0:01:48]} 18. Kb1 {[%clk 0:01:35]}  Ba8 {[%clk 0:01:42]} 19. Be1 {[%clk 0:01:03]}  Qb7 {[%clk 0:01:30]} 20. Bb4 {[%clk 0:00:46]}  a5 {[%clk 0:01:08]} 21. e5 {[%clk 0:00:41]}  d5 {[%clk 0:01:03]} 22. Bc3 {[%clk 0:00:39]}  Ne4 {[%clk 0:00:59]} 23. Bxe4 {[%clk 0:00:39]}  dxe4 {[%clk 0:00:55]} 24. Ka1 {[%clk 0:00:39]}  Qc7 {[%clk 0:00:45]} 25. Rh3 {[%clk 0:00:38]}  O-O {[%clk 0:00:40]} 26. f5 {[%clk 0:00:38]}  Bd5 {[%clk 0:00:26]} 27. f6 {[%clk 0:00:36]}  Bc5 {[%clk 0:00:26]} 28. h5 {[%clk 0:00:32]}  Rfc8 {[%clk 0:00:23]} 29. g6 {[%clk 0:00:29]}  Qb6 {[%clk 0:00:23]} 30. gxf7+ {[%clk 0:00:22]}  Kxf7 {[%clk 0:00:20]} 31. Qg4 {[%clk 0:00:16]}  Rg8 {[%clk 0:00:18]} 32. Qf4 {[%clk 0:00:05]}  Rbf8 {[%clk 0:00:15]} 33. fxg7+ {[%clk 0:00:01]}  Kxg7 {[%clk 0:00:15]} 34. h6+ {[%clk 0:00:01]}  Kh8 {[%clk 0:00:16]} 35. Qh4 {[%clk 0:00:02]}  Bxd4 {[%clk 0:00:15]} 36. Bxd4 {[%clk 0:00:02]}  Qxd4 {[%clk 0:00:15]} 0-1


[Site "https://www.chess.com"]

[Event "Titled Tuesday Blitz May 17 Early 2022"]
[White "Ceres, Dragos"]
[Black "Xu, Yi"]
[WhiteFideId "13905864"]
[BlackFideId "8605564"]
[WhiteElo "2150"]
[BlackElo "2471"]
[Result "0-1"]
[Round "02"]
[TimeControl "180+1"]
[Date "2022.05.17"]
[WhiteClock "0:00:03"]
[BlackClock "0:00:10"]

1. e4 {[%clk 0:03:00]}  c6 {[%clk 0:02:59]} 2. d4 {[%clk 0:02:56]}  d5 {[%clk 0:02:59]} 3. e5 {[%clk 0:02:52]}  Bf5 {[%clk 0:02:59]} 4. Nf3 {[%clk 0:02:51]}  e6 {[%clk 0:02:59]} 5. Be2 {[%clk 0:02:51]}  Ne7 {[%clk 0:02:59]} 6. O-O {[%clk 0:02:50]}  Ng6 {[%clk 0:03:00]} 7. Be3 {[%clk 0:02:39]}  Nd7 {[%clk 0:02:59]} 8. c4 {[%clk 0:02:37]}  f6 {[%clk 0:02:53]} 9. Nc3 {[%clk 0:02:35]}  Bb4 {[%clk 0:02:47]} 10. exf6 {[%clk 0:02:03]}  Qxf6 {[%clk 0:02:46]} 11. Qb3 {[%clk 0:02:02]}  Bxc3 {[%clk 0:02:41]} 12. bxc3 {[%clk 0:02:03]}  b6 {[%clk 0:02:36]} 13. cxd5 {[%clk 0:01:58]}  exd5 {[%clk 0:02:34]} 14. c4 {[%clk 0:01:57]}  Qd6 {[%clk 0:02:08]} 15. cxd5 {[%clk 0:01:46]}  cxd5 {[%clk 0:02:08]} 16. a4 {[%clk 0:01:33]}  O-O {[%clk 0:02:04]} 17. a5 {[%clk 0:01:30]}  h6 {[%clk 0:01:54]} 18. Ne1 {[%clk 0:01:17]}  Kh7 {[%clk 0:01:52]} 19. Nd3 {[%clk 0:01:06]}  Nf6 {[%clk 0:01:49]} 20. axb6 {[%clk 0:01:04]}  axb6 {[%clk 0:01:49]} 21. Rxa8 {[%clk 0:01:04]}  Rxa8 {[%clk 0:01:49]} 22. Ne5 {[%clk 0:01:05]}  Nxe5 {[%clk 0:01:43]} 23. dxe5 {[%clk 0:01:05]}  Qxe5 {[%clk 0:01:43]} 24. Qxb6 {[%clk 0:01:04]}  Be4 {[%clk 0:01:36]} 25. Qd4 {[%clk 0:00:58]}  Qe6 {[%clk 0:01:31]} 26. Re1 {[%clk 0:00:54]}  Ra2 {[%clk 0:01:28]} 27. Bf1 {[%clk 0:00:53]}  Qg4 {[%clk 0:01:23]} 28. Qe5 {[%clk 0:00:49]}  Qg6 {[%clk 0:01:19]} 29. Qg3 {[%clk 0:00:43]}  Qf5 {[%clk 0:01:06]} 30. Bd4 {[%clk 0:00:39]}  Nh5 {[%clk 0:00:56]} 31. Qc7 {[%clk 0:00:30]}  Qg6 {[%clk 0:00:51]} 32. Qe5 {[%clk 0:00:21]}  Ra8 {[%clk 0:00:30]} 33. h3 {[%clk 0:00:12]}  Re8 {[%clk 0:00:29]} 34. Qc7 {[%clk 0:00:13]}  Rf8 {[%clk 0:00:28]} 35. g4 {[%clk 0:00:09]}  Nf4 {[%clk 0:00:27]} 36. Be5 {[%clk 0:00:05]}  Ne6 {[%clk 0:00:23]} 37. Qe7 {[%clk 0:00:05]}  h5 {[%clk 0:00:23]} 38. Be2 {[%clk 0:00:04]}  Rf7 {[%clk 0:00:20]} 39. Qd6 {[%clk 0:00:04]}  h4 {[%clk 0:00:16]} 40. f4 {[%clk 0:00:03]}  Rb7 {[%clk 0:00:08]} 41. Kh2 {[%clk 0:00:03]}  Rb2 {[%clk 0:00:08]} 42. f5 {[%clk 0:00:03]}  Bxf5 {[%clk 0:00:08]} 43. Bxb2 {[%clk 0:00:04]}  Be4 {[%clk 0:00:06]} 44. Be5 {[%clk 0:00:04]}  Qf7 {[%clk 0:00:07]} 45. Bd4 {[%clk 0:00:03]}  Nxd4 {[%clk 0:00:06]} 46. Rf1 {[%clk 0:00:03]}  Qg6 {[%clk 0:00:04]} 47. Qxg6+ {[%clk 0:00:03]}  Kxg6 {[%clk 0:00:05]} 48. Bd1 {[%clk 0:00:04]}  Ne6 {[%clk 0:00:05]} 49. Kg1 {[%clk 0:00:04]}  Ng5 {[%clk 0:00:06]} 50. Kf2 {[%clk 0:00:05]}  Nxh3+ {[%clk 0:00:06]} 51. Ke3 {[%clk 0:00:06]}  Ng5 {[%clk 0:00:06]} 52. Kf4 {[%clk 0:00:06]}  h3 {[%clk 0:00:07]} 53. Re1 {[%clk 0:00:06]}  h2 {[%clk 0:00:07]} 54. Ba4 {[%clk 0:00:03]}  h1=Q {[%clk 0:00:07]} 55. Rxh1 {[%clk 0:00:04]}  Bxh1 {[%clk 0:00:07]} 56. Be8+ {[%clk 0:00:04]}  Kf6 {[%clk 0:00:08]} 57. Bc6 {[%clk 0:00:03]}  Ne6+ {[%clk 0:00:09]} 58. Kg3 {[%clk 0:00:04]}  Ke5 {[%clk 0:00:08]} 59. Kh2 {[%clk 0:00:03]}  Be4 {[%clk 0:00:09]} 60. Kg3 {[%clk 0:00:04]}  d4 {[%clk 0:00:09]} 61. Bxe4 {[%clk 0:00:03]}  Kxe4 {[%clk 0:00:10]} 0-1


[Site "https://www.chess.com"]

[Event "Titled Tuesday Blitz May 17 Early 2022"]
[White "Deac, Bogdan-Daniel"]
[Black "Barria Zuniga, Daniel"]
[WhiteFideId "1226380"]
[BlackFideId "3400816"]
[WhiteElo "2648"]
[BlackElo "2414"]
[Result "1/2-1/2"]
[Round "02"]
[TimeControl "180+1"]
[Date "2022.05.17"]
[WhiteClock "0:00:05"]
[BlackClock "0:00:08"]

1. e4 {[%clk 0:03:00]}  e6 {[%clk 0:02:59]} 2. d4 {[%clk 0:03:00]}  d5 {[%clk 0:02:59]} 3. Nc3 {[%clk 0:03:00]}  Bb4 {[%clk 0:02:58]} 4. Ne2 {[%clk 0:02:59]}  Nc6 {[%clk 0:02:58]} 5. a3 {[%clk 0:02:56]}  Ba5 {[%clk 0:02:58]} 6. e5 {[%clk 0:02:34]}  f6 {[%clk 0:02:57]} 7. b4 {[%clk 0:02:23]}  Bb6 {[%clk 0:02:56]} 8. Na4 {[%clk 0:02:23]}  fxe5 {[%clk 0:02:48]} 9. Nxb6 {[%clk 0:02:23]}  axb6 {[%clk 0:02:49]} 10. dxe5 {[%clk 0:02:23]}  Nxb4 {[%clk 0:02:31]} 11. Nf4 {[%clk 0:01:57]}  Ne7 {[%clk 0:02:25]} 12. Nh5 {[%clk 0:01:31]}  O-O {[%clk 0:02:08]} 13. Nxg7 {[%clk 0:01:05]}  Kxg7 {[%clk 0:01:56]} 14. Qg4+ {[%clk 0:01:02]}  Kh8 {[%clk 0:01:56]} 15. Qxb4 {[%clk 0:00:59]}  c5 {[%clk 0:01:51]} 16. Qg4 {[%clk 0:00:47]}  Qe8 {[%clk 0:01:04]} 17. Bg5 {[%clk 0:00:38]}  Qg6 {[%clk 0:00:59]} 18. Bd3 {[%clk 0:00:31]}  Nf5 {[%clk 0:00:57]} 19. h3 {[%clk 0:00:31]}  c4 {[%clk 0:00:50]} 20. Be2 {[%clk 0:00:26]}  Nd4 {[%clk 0:00:44]} 21. Bd1 {[%clk 0:00:18]}  Bd7 {[%clk 0:00:41]} 22. Bf6+ {[%clk 0:00:17]}  Rxf6 {[%clk 0:00:40]} 23. exf6 {[%clk 0:00:18]}  Qxf6 {[%clk 0:00:39]} 24. c3 {[%clk 0:00:15]}  Nf5 {[%clk 0:00:37]} 25. Rc1 {[%clk 0:00:12]}  Rxa3 {[%clk 0:00:26]} 26. Qf4 {[%clk 0:00:07]}  Rxc3 {[%clk 0:00:22]} 27. Ra1 {[%clk 0:00:06]}  Re3+ {[%clk 0:00:08]} 28. fxe3 {[%clk 0:00:06]}  Qxa1 {[%clk 0:00:09]} 29. O-O {[%clk 0:00:06]}  Qc3 {[%clk 0:00:09]} 30. Qb8+ {[%clk 0:00:05]}  Kg7 {[%clk 0:00:08]} 31. Qxb7 {[%clk 0:00:05]}  Qxe3+ {[%clk 0:00:08]} 32. Kh2 {[%clk 0:00:04]}  Qe5+ {[%clk 0:00:08]} 33. Kg1 {[%clk 0:00:05]}  Qe3+ {[%clk 0:00:08]} 34. Rf2 {[%clk 0:00:05]}  Qe1+ {[%clk 0:00:08]} 35. Rf1 {[%clk 0:00:05]}  Qe3+ {[%clk 0:00:08]} 1/2-1/2


[Site "https://www.chess.com"]

[Event "Titled Tuesday Blitz May 17 Early 2022"]
[White "Demchenko, Anton"]
[Black "Guz, Ari"]
[WhiteFideId "4160258"]
[BlackFideId "2825759"]
[WhiteElo "2539"]
[BlackElo "1913"]
[Result "1-0"]
[Round "02"]
[TimeControl "180+1"]
[Date "2022.05.17"]
[WhiteClock "0:02:22"]
[BlackClock "0:01:10"]

1. e4 {[%clk 0:03:00]}  c5 {[%clk 0:02:59]} 2. Nf3 {[%clk 0:02:59]}  e6 {[%clk 0:02:59]} 3. d4 {[%clk 0:02:59]}  cxd4 {[%clk 0:03:00]} 4. Nxd4 {[%clk 0:03:00]}  a6 {[%clk 0:03:01]} 5. Bd3 {[%clk 0:03:00]}  Nc6 {[%clk 0:03:00]} 6. Nxc6 {[%clk 0:02:59]}  bxc6 {[%clk 0:03:01]} 7. e5 {[%clk 0:02:56]}  Qc7 {[%clk 0:02:59]} 8. Qe2 {[%clk 0:02:56]}  d5 {[%clk 0:02:50]} 9. exd6 {[%clk 0:02:54]}  Bxd6 {[%clk 0:02:50]} 10. Nd2 {[%clk 0:02:55]}  Nf6 {[%clk 0:02:49]} 11. Nc4 {[%clk 0:02:53]}  Be7 {[%clk 0:02:41]} 12. O-O {[%clk 0:02:52]}  O-O {[%clk 0:02:40]} 13. Bd2 {[%clk 0:02:48]}  c5 {[%clk 0:02:40]} 14. Ba5 {[%clk 0:02:47]}  Qc6 {[%clk 0:02:34]} 15. Ne5 {[%clk 0:02:44]}  Qe8 {[%clk 0:02:23]} 16. c4 {[%clk 0:02:40]}  Bb7 {[%clk 0:02:23]} 17. Rfe1 {[%clk 0:02:41]}  Bd8 {[%clk 0:02:15]} 18. Bc3 {[%clk 0:02:38]}  Bc7 {[%clk 0:02:15]} 19. Qe3 {[%clk 0:02:36]}  Qe7 {[%clk 0:02:11]} 20. Qh3 {[%clk 0:02:35]}  h6 {[%clk 0:02:03]} 21. Re3 {[%clk 0:02:31]}  Nh7 {[%clk 0:01:42]} 22. f4 {[%clk 0:02:28]}  Kh8 {[%clk 0:01:10]} 23. Qxh6 {[%clk 0:02:22]} 1-0


[Site "https://www.chess.com"]

[Event "Titled Tuesday Blitz May 17 Early 2022"]
[White "Goltsev, Dmitry"]
[Black "Xiong, Jeffery"]
[WhiteFideId "24176710"]
[BlackFideId "2047640"]
[WhiteElo "2258"]
[BlackElo "2727"]
[Result "0-1"]
[Round "02"]
[TimeControl "180+1"]
[Date "2022.05.17"]
[WhiteClock "0:02:06"]
[BlackClock "0:01:47"]

1. e4 {[%clk 0:03:00]}  c5 {[%clk 0:02:58]} 2. Nf3 {[%clk 0:03:00]}  d6 {[%clk 0:02:58]} 3. d4 {[%clk 0:03:00]}  cxd4 {[%clk 0:02:59]} 4. Nxd4 {[%clk 0:03:01]}  Nf6 {[%clk 0:02:59]} 5. Nc3 {[%clk 0:03:01]}  a6 {[%clk 0:03:00]} 6. Bg5 {[%clk 0:03:02]}  e6 {[%clk 0:02:59]} 7. Qd2 {[%clk 0:03:02]}  h6 {[%clk 0:02:57]} 8. Bxf6 {[%clk 0:02:58]}  Qxf6 {[%clk 0:02:58]} 9. O-O-O {[%clk 0:02:59]}  Nc6 {[%clk 0:02:56]} 10. Nb3 {[%clk 0:02:54]}  g5 {[%clk 0:02:56]} 11. h4 {[%clk 0:02:53]}  Rg8 {[%clk 0:02:49]} 12. hxg5 {[%clk 0:02:53]}  hxg5 {[%clk 0:02:50]} 13. g3 {[%clk 0:02:42]}  Bd7 {[%clk 0:02:48]} 14. Bg2 {[%clk 0:02:41]}  O-O-O {[%clk 0:02:45]} 15. Na4 {[%clk 0:02:34]}  Kb8 {[%clk 0:02:27]} 16. Nb6 {[%clk 0:02:34]}  Be8 {[%clk 0:02:27]} 17. Na5 {[%clk 0:02:26]}  Nxa5 {[%clk 0:02:06]} 18. Qxa5 {[%clk 0:02:27]}  Qxf2 {[%clk 0:02:07]} 19. Rd2 {[%clk 0:02:12]}  Qxg3 {[%clk 0:01:50]} 20. Rh3 {[%clk 0:02:06]}  Qe1+ {[%clk 0:01:47]} 0-1


[Site "https://www.chess.com"]

[Event "Titled Tuesday Blitz May 17 Early 2022"]
[White "Jain Kashish Manoj"]
[Black "Neiksans, Arturs"]
[WhiteFideId "35081098"]
[BlackFideId "11601388"]
[WhiteElo "1681"]
[BlackElo "2447"]
[Result "0-1"]
[Round "02"]
[TimeControl "180+1"]
[Date "2022.05.17"]
[WhiteClock "0:00:56"]
[BlackClock "0:02:48"]

1. e4 {[%clk 0:03:00]}  c5 {[%clk 0:02:59]} 2. Nf3 {[%clk 0:03:00]}  e6 {[%clk 0:03:00]} 3. d4 {[%clk 0:03:00]}  cxd4 {[%clk 0:03:01]} 4. Nxd4 {[%clk 0:03:00]}  a6 {[%clk 0:03:01]} 5. Nc3 {[%clk 0:03:01]}  b5 {[%clk 0:03:01]} 6. Bd3 {[%clk 0:02:42]}  Bb7 {[%clk 0:03:01]} 7. O-O {[%clk 0:02:26]}  Nc6 {[%clk 0:03:02]} 8. Nxc6 {[%clk 0:02:15]}  Bxc6 {[%clk 0:03:02]} 9. Re1 {[%clk 0:02:15]}  Qb8 {[%clk 0:03:03]} 10. Qg4 {[%clk 0:02:02]}  Nf6 {[%clk 0:03:03]} 11. Qg3 {[%clk 0:01:53]}  Qxg3 {[%clk 0:02:57]} 12. hxg3 {[%clk 0:01:54]}  Ng4 {[%clk 0:02:55]} 13. Be2 {[%clk 0:01:15]}  h5 {[%clk 0:02:49]} 14. f3 {[%clk 0:00:56]}  Bc5+ {[%clk 0:02:48]} 0-1


[Site "https://www.chess.com"]

[Event "Titled Tuesday Blitz May 17 Early 2022"]
[White "Jakubowski, Krzysztof"]
[Black "Visakh N R"]
[WhiteFideId "1112848"]
[BlackFideId "25012223"]
[WhiteElo "2365"]
[BlackElo "2448"]
[Result "0-1"]
[Round "02"]
[TimeControl "180+1"]
[Date "2022.05.17"]
[WhiteClock "0:00:01"]
[BlackClock "0:00:05"]

1. e4 {[%clk 0:03:00]}  c5 {[%clk 0:02:58]} 2. Nf3 {[%clk 0:02:59]}  d6 {[%clk 0:02:58]} 3. d4 {[%clk 0:02:59]}  cxd4 {[%clk 0:02:59]} 4. Nxd4 {[%clk 0:02:59]}  Nf6 {[%clk 0:02:59]} 5. Nc3 {[%clk 0:02:59]}  a6 {[%clk 0:03:00]} 6. Be3 {[%clk 0:02:57]}  e5 {[%clk 0:03:00]} 7. Nb3 {[%clk 0:02:57]}  Be7 {[%clk 0:02:59]} 8. h3 {[%clk 0:02:56]}  O-O {[%clk 0:02:57]} 9. Qf3 {[%clk 0:02:53]}  Be6 {[%clk 0:02:56]} 10. O-O-O {[%clk 0:02:51]}  Nbd7 {[%clk 0:02:57]} 11. g4 {[%clk 0:02:50]}  Rc8 {[%clk 0:02:51]} 12. g5 {[%clk 0:02:46]}  Ne8 {[%clk 0:02:50]} 13. h4 {[%clk 0:02:45]}  Rxc3 {[%clk 0:02:46]} 14. bxc3 {[%clk 0:02:46]}  Nb6 {[%clk 0:02:43]} 15. Bh3 {[%clk 0:02:38]}  Na4 {[%clk 0:02:41]} 16. g6 {[%clk 0:02:25]}  Nxc3 {[%clk 0:02:37]} 17. gxh7+ {[%clk 0:02:21]}  Kh8 {[%clk 0:02:36]} 18. Rdg1 {[%clk 0:01:44]}  Qc8 {[%clk 0:02:28]} 19. Bg5 {[%clk 0:01:28]}  Nf6 {[%clk 0:02:05]} 20. Bxe6 {[%clk 0:01:07]}  fxe6 {[%clk 0:02:04]} 21. Qg2 {[%clk 0:00:38]}  d5 {[%clk 0:01:44]} 22. Bh6 {[%clk 0:00:30]}  Ba3+ {[%clk 0:01:07]} 23. Kd2 {[%clk 0:00:29]}  Ncxe4+ {[%clk 0:01:00]} 24. Kd1 {[%clk 0:00:27]}  Nxf2+ {[%clk 0:00:55]} 25. Qxf2 {[%clk 0:00:21]}  gxh6 {[%clk 0:00:47]} 26. Qg3 {[%clk 0:00:20]}  Qc7 {[%clk 0:00:34]} 27. Rf1 {[%clk 0:00:19]}  Rc8 {[%clk 0:00:30]} 28. Rh2 {[%clk 0:00:19]}  Ne4 {[%clk 0:00:29]} 29. Qg6 {[%clk 0:00:11]}  Qg7 {[%clk 0:00:25]} 30. Qxg7+ {[%clk 0:00:10]}  Kxg7 {[%clk 0:00:25]} 31. Rg2+ {[%clk 0:00:11]}  Kxh7 {[%clk 0:00:25]} 32. Rf7+ {[%clk 0:00:11]}  Kh8 {[%clk 0:00:26]} 33. Rgg7 {[%clk 0:00:10]}  Bf8 {[%clk 0:00:20]} 34. Rg6 {[%clk 0:00:08]}  Nd6 {[%clk 0:00:13]} 35. Rd7 {[%clk 0:00:06]}  Nf5 {[%clk 0:00:06]} 36. Rxe6 {[%clk 0:00:05]}  e4 {[%clk 0:00:06]} 37. Rf6 {[%clk 0:00:04]}  Ne3+ {[%clk 0:00:05]} 38. Kd2 {[%clk 0:00:04]}  Nc4+ {[%clk 0:00:05]} 39. Ke1 {[%clk 0:00:03]}  Bb4+ {[%clk 0:00:04]} 40. Ke2 {[%clk 0:00:01]}  Ne5 {[%clk 0:00:05]} 41. Rxb7 {[%clk 0:00:01]}  Rxc2+ {[%clk 0:00:05]} 42. Kd1 {[%clk 0:00:01]}  Rc4 {[%clk 0:00:05]} 0-1


[Site "https://www.chess.com"]